bitfinex-derivatives/quotes_BTCF0:USTF0_20250719
["timestamp","ask_amount","ask_price","bid_price","bid_amount"]
[1752888318691,0.83322339,118120.0,118110.0,0.8697956]
[1752888319196,0.83322339,118120.0,118110.0,0.5089956]
[1752888319391,0.38443309,118120.0,118110.0,0.5089956]
[1752888319593,0.83318572,118120.0,118110.0,0.5089956]
[1752888319792,0.75911089,118120.0,118110.0,0.5089956]
[1752888319994,0.83518553,118120.0,118110.0,0.8697956]
[1752888320394,0.75911089,118120.0,118110.0,0.51771806]
[1752888320593,0.83516784,118120.0,118110.0,0.17793446]
[1752888320804,0.3670748,118110.0,118100.0,1.0984509]
[1752888320994,0.62947065,118110.0,118100.0,0.912112]
[1752888321297,0.5534137,118110.0,118100.0,0.912112]
[1752888321799,0.61424617,118110.0,118100.0,0.912072]
[1752888322191,0.61424617,118110.0,118100.0,0.92062611]
[1752888322497,0.5554137,118110.0,118100.0,0.913072]
[1752888322998,0.5554137,118110.0,118100.0,0.8707649]
[1752888323297,0.63147065,118110.0,118100.0,0.8707649]
[1752888323800,0.63147065,118110.0,118100.0,0.5099649]
[1752888324000,0.5554137,118110.0,118100.0,0.5099649]
[1752888324197,0.5554137,118110.0,118100.0,0.8707649]
[1752888324800,0.5554137,118110.0,118100.0,1.0571038]
[1752888325398,0.61620647,118110.0,118100.0,0.8707649]
[1752888325602,0.61620647,118110.0,118100.0,0.6963038]
[1752888325802,0.5554137,118110.0,118100.0,0.6963038]
[1752888326004,0.61619709,118110.0,118100.0,0.70502905]
[1752888326310,0.61619709,118110.0,118100.0,0.6963038]
[1752888326602,0.61619709,118110.0,118100.0,0.5099649]
[1752888327394,0.61719709,118110.0,118100.0,0.5099649]
[1752888327600,0.43085819,118110.0,118100.0,0.5099649]
[1752888327805,0.61719709,118110.0,118100.0,0.5099649]
[1752888328201,0.61719709,118110.0,118100.0,0.7394438]
[1752888328704,0.5564137,118110.0,118100.0,0.7394438]
[1752888329099,0.5564137,118110.0,118100.0,1.10892204]
[1752888329300,0.61716983,118110.0,118100.0,1.10892204]
[1752888331100,0.5564137,118110.0,118100.0,1.10892204]
[1752888331407,0.61716486,118110.0,118100.0,1.10892204]
[1752888332807,0.5564137,118110.0,118100.0,1.10892204]
[1752888333011,0.61716339,118110.0,118100.0,1.10892204]
[1752888333495,0.5564137,118110.0,118100.0,0.74812204]
[1752888333700,0.5564137,118110.0,118100.0,1.10892204]
[1752888334203,0.63235605,118110.0,118100.0,0.56178314]
[1752888334507,0.63235605,118110.0,118100.0,0.54846314]
[1752888337408,0.63235605,118110.0,118100.0,0.51864314]
[1752888337710,0.6171819,118110.0,118100.0,0.51864314]
[1752888337913,0.430843,118110.0,118100.0,0.87944314]
[1752888338106,0.6171819,118110.0,118100.0,0.54846314]
[1752888339512,0.6171819,118110.0,118100.0,0.56178314]
[1752888339906,0.6171819,118110.0,118100.0,0.74812204]
[1752888340213,0.6171819,118110.0,118100.0,0.92258314]
[1752888340410,0.6171819,118110.0,118100.0,1.10892204]
[1752888343919,0.5564137,118110.0,118100.0,1.10892204]
[1752888344309,0.6171819,118110.0,118100.0,1.10892204]
[1752888344714,0.5564137,118110.0,118100.0,0.92258314]
[1752888344916,0.5564137,118110.0,118100.0,0.83701604]
[1752888345119,0.63235605,118110.0,118100.0,0.83701604]
[1752888345318,0.63235605,118110.0,118100.0,0.86683604]
[1752888345615,0.63235605,118110.0,118100.0,0.88015604]
[1752888345919,0.63235605,118110.0,118100.0,1.06649494]
[1752888346419,0.5564137,118110.0,118100.0,1.06649494]
[1752888346612,0.5564137,118110.0,118100.0,0.88015604]
[1752888346816,0.5564137,118110.0,118100.0,1.06649494]
[1752888347016,0.5564137,118110.0,118100.0,0.88015604]
[1752888348418,0.57299918,118110.0,118100.0,0.88015604]
[1752888349622,0.63395458,118110.0,118100.0,0.88015604]
[1752888350221,0.63395458,118110.0,118100.0,0.51931604]
[1752888350418,0.82029348,118110.0,118100.0,0.001]
[1752888350613,0.83528043,118110.0,118100.0,0.29733295]
[1752888350817,0.75933808,118110.0,118100.0,0.29733295]
[1752888351821,0.75933808,118110.0,118100.0,0.30585659]
[1752888352121,0.75933808,118110.0,118100.0,0.00861659]
[1752888352322,0.86577482,118110.0,118100.0,9.295e-05]
[1752888352522,1.22657482,118110.0,118100.0,9.295e-05]
[1752888352716,0.86577482,118110.0,118100.0,9.295e-05]
[1752888353522,1.12013808,118110.0,118100.0,9.295e-05]
[1752888354923,1.19633456,118110.0,118100.0,9.295e-05]
[1752888362527,1.19632842,118110.0,118100.0,9.295e-05]
[1752888363321,0.82365062,118110.0,118100.0,9.295e-05]
[1752888363524,1.19632842,118110.0,118100.0,9.295e-05]
[1752888365828,1.19632842,118110.0,118100.0,8.66e-06]
[1752888366433,0.3633674,118080.0,118070.0,0.5300717]
[1752888366626,0.77001727,118080.0,118070.0,0.36940318]
[1752888366831,1.13081727,118080.0,118070.0,0.00860318]
[1752888367137,0.3633817,118070.0,118060.0,0.6105707]
[1752888367325,0.56629994,118070.0,118060.0,0.6105707]
[1752888367530,0.62724366,118070.0,118060.0,0.03817]
[1752888367725,0.62724366,118070.0,118060.0,0.207456]
[1752888368231,0.62724366,118070.0,118060.0,0.568256]
[1752888368636,0.62724366,118070.0,118060.0,0.207456]
[1752888368831,0.44090476,118070.0,118060.0,0.57667286]
[1752888369036,0.62741563,118070.0,118060.0,0.21587286]
[1752888369232,0.62741563,118070.0,118060.0,0.21787286]
[1752888369433,0.56647191,118070.0,118060.0,0.57867286]
[1752888370336,0.62828606,118070.0,118060.0,0.58167286]
[1752888370837,0.44177519,118070.0,118060.0,0.58167286]
[1752888371037,0.62828606,118070.0,118060.0,0.58167286]
[1752888371538,0.69614529,118070.0,118060.0,0.58167286]
[1752888372434,0.50963442,118070.0,118060.0,0.58167286]
[1752888372639,0.69614529,118070.0,118060.0,0.58167286]
[1752888374239,0.24106857,118070.0,118060.0,0.77436373]
[1752888374446,0.01757934,118070.0,118060.0,0.79473373]
[1752888377039,0.07484934,118070.0,118060.0,0.79473373]
[1752888377339,0.13558934,118070.0,118060.0,0.79473373]
[1752888378638,0.13558934,118070.0,118060.0,0.60822286]
[1752888378833,0.13558934,118070.0,118060.0,0.79473373]
[1752888379935,0.13558934,118070.0,118060.0,1.08993373]
[1752888382633,0.13558934,118070.0,118060.0,1.38689373]
[1752888382836,0.20329934,118070.0,118060.0,1.38689373]
[1752888383145,0.37257054,118070.0,118060.0,1.38689373]
[1752888383443,0.38096054,118070.0,118060.0,1.38689373]
[1752888383643,0.21168934,118070.0,118060.0,1.38689373]
[1752888383844,0.21168934,118070.0,118060.0,1.08993373]
[1752888384039,0.28786453,118070.0,118060.0,1.38689373]
[1752888384239,0.21168934,118070.0,118060.0,1.38689373]
[1752888385439,0.39812595,118070.0,118060.0,1.06338373]
[1752888385646,0.47430114,118070.0,118060.0,1.17379286]
[1752888385842,0.39812595,118070.0,118060.0,0.87859286]
[1752888386346,0.39812595,118070.0,118060.0,0.89737286]
[1752888389346,0.46709197,118070.0,118060.0,0.89737286]
[1752888390142,0.46711017,118070.0,118060.0,0.87859286]
[1752888390747,0.65362104,118070.0,118060.0,0.58167286]
[1752888390947,0.72979623,118070.0,118060.0,0.58167286]
[1752888391347,0.72979623,118070.0,118060.0,0.87851286]
[1752888391549,0.72979623,118070.0,118060.0,0.80988317]
[1752888392143,0.72979623,118070.0,118060.0,0.51304317]
[1752888392344,0.63645513,118070.0,118060.0,0.44908317]
[1752888392545,0.72629433,118070.0,118060.0,0.44908317]
[1752888393450,0.53978346,118070.0,118060.0,0.44908317]
[1752888393645,0.72629433,118070.0,118060.0,0.44908317]
[1752888394048,0.61985759,118070.0,118060.0,0.44908317]
[1752888394542,0.61985759,118070.0,118060.0,0.15224317]
[1752888394747,0.61985759,118070.0,118060.0,0.44908317]
[1752888395451,0.61985759,118070.0,118060.0,0.80988317]
[1752888395839,0.61985759,118070.0,118060.0,0.44908317]
[1752888397051,0.61985759,118070.0,118060.0,0.44066631]
[1752888398853,0.69592854,118070.0,118060.0,0.30184]
[1752888399854,0.69592854,118070.0,118060.0,0.29984]
[1752888400052,0.61985759,118070.0,118060.0,0.30084]
[1752888400253,0.69592854,118070.0,118060.0,0.29984]
[1752888400853,0.69592854,118070.0,118060.0,0.003]
[1752888401053,0.61985759,118070.0,118060.0,0.003]
[1752888401553,1.05672854,118070.0,118060.0,0.003]
[1752888402054,0.69592854,118070.0,118060.0,0.003]
[1752888402255,0.69592854,118070.0,118060.0,0.1722862]
[1752888405057,0.88248803,118070.0,118060.0,0.1722862]
[1752888406154,0.80641708,118070.0,118060.0,0.1722862]
[1752888407656,0.80641708,118070.0,118060.0,0.003]
[1752888408258,0.88248803,118070.0,118060.0,0.1722862]
[1752888408757,0.88248803,118070.0,118060.0,0.003]
[1752888410153,0.50941767,118070.0,118060.0,0.71962138]
[1752888410359,0.69595285,118070.0,118060.0,0.71962138]
[1752888412558,0.69595285,118070.0,118060.0,0.5330862]
[1752888412956,0.69592732,118070.0,118060.0,0.5330862]
[1752888414957,0.69592732,118070.0,118060.0,0.003]
[1752888419867,0.69592732,118070.0,118060.0,0.1722862]
[1752888421969,0.49430605,118070.0,118060.0,0.5330862]
[1752888422163,0.32503535,118070.0,118060.0,0.71959585]
[1752888422366,0.26404697,118070.0,118060.0,0.71959585]
[1752888422568,0.06996602,118070.0,118060.0,1.01479585]
[1752888422768,0.001,118070.0,118060.0,1.01479585]
[1752888422968,0.07707095,118070.0,118060.0,1.01479585]
[1752888423170,0.001,118070.0,118060.0,1.01479585]
[1752888423373,0.001,118070.0,118060.0,1.03361376]
[1752888423670,0.06195256,118070.0,118060.0,1.03361376]
[1752888424167,0.07707095,118070.0,118060.0,1.03361376]
[1752888425768,0.001,118070.0,118060.0,1.03361376]
[1752888427873,0.07707095,118070.0,118060.0,1.03361376]
[1752888428067,0.001,118070.0,118060.0,1.03361376]
[1752888428467,0.10107,118070.0,118060.0,1.33009376]
[1752888428667,0.17714095,118070.0,118060.0,1.33009376]
[1752888429273,0.1619119,118070.0,118060.0,1.33009376]
[1752888430972,0.1798519,118070.0,118060.0,0.84710411]
[1752888431184,0.1798519,118070.0,118060.0,1.33005376]
[1752888432072,0.11901,118070.0,118060.0,1.33005376]
[1752888434976,0.14701,118070.0,118060.0,1.03361376]
[1752888435173,0.26108755,118070.0,118060.0,0.84710411]
[1752888435477,0.6168691,118070.0,118060.0,1.14346411]
[1752888436174,0.6168691,118070.0,118060.0,1.1246462]
[1752888436773,0.63335945,118070.0,118060.0,1.1246462]
[1752888437081,0.4468498,118070.0,118060.0,1.1246462]
[1752888437274,0.63335945,118070.0,118060.0,1.1246462]
[1752888437976,0.2775779,118070.0,118060.0,1.1246462]
[1752888439077,0.2775779,118070.0,118060.0,0.8294462]
[1752888439277,0.4468498,118070.0,118060.0,0.8294462]
[1752888439682,0.2775779,118070.0,118060.0,0.8294462]
[1752888440481,0.4468497,118070.0,118060.0,0.8294462]
[1752888441281,0.5076916,118070.0,118060.0,0.8294462]
[1752888441781,0.3384198,118070.0,118060.0,1.01595585]
[1752888442784,0.5076917,118070.0,118060.0,1.01595585]
[1752888443187,0.4468498,118070.0,118060.0,1.01595585]
[1752888443685,0.3384198,118070.0,118060.0,1.01595585]
[1752888445888,0.17840225,118070.0,118060.0,1.01595585]
[1752888446184,0.11984225,118070.0,118060.0,1.01595585]
[1752888446381,0.07833225,118070.0,118060.0,1.01595585]
[1752888446785,0.01749035,118070.0,118060.0,1.01595585]
[1752888446985,0.06115035,118070.0,118060.0,1.01595585]
[1752888447388,0.11504035,118070.0,118060.0,1.01595585]
[1752888447584,0.17588225,118070.0,118060.0,1.01595585]
[1752888450481,0.11504035,118070.0,118060.0,1.01595585]
[1752888450879,0.11504035,118070.0,118060.0,1.31115585]
[1752888454892,0.11504035,118070.0,118060.0,1.1246462]
[1752888455092,0.11504035,118070.0,118060.0,1.31115585]
[1752888459000,0.01749035,118070.0,118060.0,1.31115585]
[1752888460498,0.06115035,118070.0,118060.0,1.31115585]
[1752888460999,0.11504035,118070.0,118060.0,1.31115585]
[1752888466802,0.01749035,118070.0,118060.0,1.31115585]
[1752888468201,0.06115035,118070.0,118060.0,1.31115585]
[1752888471611,0.11504035,118070.0,118060.0,1.31115585]
[1752888474015,0.17588225,118070.0,118060.0,1.31115585]
[1752888476313,0.11504035,118070.0,118060.0,1.31115585]
[1752888478721,0.11504035,118070.0,118060.0,0.95035585]
[1752888479020,0.11504035,118070.0,118060.0,1.67195585]
[1752888480713,0.11504035,118070.0,118060.0,0.95035585]
[1752888480913,0.17599694,118070.0,118060.0,1.67195585]
[1752888481114,0.17599694,118070.0,118060.0,1.67295585]
[1752888482221,0.17599694,118070.0,118060.0,1.67195585]
[1752888482421,0.17599694,118070.0,118060.0,1.67295585]
[1752888483014,0.17599694,118070.0,118060.0,1.85927678]
[1752888483221,0.19210694,118070.0,118060.0,1.85927678]
[1752888484126,0.13115035,118070.0,118060.0,1.85927678]
[1752888485324,0.11504035,118070.0,118060.0,1.85927678]
[1752888486224,0.11504035,118070.0,118060.0,1.86027678]
[1752888489129,0.09855,118070.0,118060.0,1.86027678]
[1752888490028,0.09855,118070.0,118060.0,2.04669207]
[1752888491127,0.11519168,118070.0,118060.0,1.86027678]
[1752888491324,0.13130168,118070.0,118060.0,1.86027678]
[1752888493332,0.13130168,118070.0,118060.0,1.4874462]
[1752888493526,0.13130168,118070.0,118060.0,1.86027678]
[1752888496231,0.13130168,118070.0,118060.0,2.04669207]
[1752888496629,0.13130168,118070.0,118060.0,1.86027678]
[1752888501935,0.13130168,118070.0,118060.0,2.04669207]
[1752888502937,0.13130168,118070.0,118060.0,1.86027678]
[1752888505836,0.02205468,118070.0,118060.0,2.04669207]
[1752888506036,8e-08,118070.0,118060.0,2.07118207]
[1752888508139,0.13311667,118080.0,118070.0,0.1970018]
[1752888508332,0.11385,118080.0,118070.0,0.95953238]
[1752888509437,0.05508,118080.0,118070.0,0.95953238]
[1752888510037,0.05508,118080.0,118070.0,1.25473238]
[1752888511145,0.05508,118080.0,118070.0,1.25573238]
[1752888511844,0.05508,118080.0,118070.0,1.25673238]
[1752888512045,0.13114301,118090.0,118080.0,0.1969875]
[1752888512243,0.13114301,118090.0,118080.0,1.25475808]
[1752888514147,0.20721396,118090.0,118080.0,1.18615052]
[1752888514348,0.24199396,118090.0,118080.0,1.18615052]
[1752888514543,0.24199396,118090.0,118080.0,1.18715052]
[1752888515041,0.27656396,118090.0,118080.0,1.18815052]
[1752888515441,0.20049301,118090.0,118080.0,1.18815052]
[1752888519548,0.20049301,118090.0,118080.0,1.54895052]
[1752888520047,0.26138824,118090.0,118080.0,1.54895052]
[1752888521853,0.26138824,118090.0,118080.0,1.84415052]
[1752888523958,0.20049301,118090.0,118080.0,1.84415052]
[1752888536465,0.20049301,118090.0,118080.0,1.47131994]
[1752888536664,0.20049301,118090.0,118080.0,1.84415052]
[1752888538766,0.26138824,118090.0,118080.0,1.84415052]
[1752888539569,0.20049301,118090.0,118080.0,1.84415052]
[1752888540368,0.26138824,118090.0,118080.0,1.84415052]
[1752888540567,0.20049301,118090.0,118080.0,1.84415052]
[1752888541373,0.13114301,118090.0,118080.0,1.84415052]
[1752888543770,0.13114301,118090.0,118080.0,1.12255052]
[1752888543970,0.13114301,118090.0,118080.0,1.84415052]
[1752888546576,0.20288301,118090.0,118080.0,1.84415052]
[1752888549881,0.20288301,118090.0,118080.0,1.12255052]
[1752888550080,0.20288301,118090.0,118080.0,1.84415052]
[1752888550380,0.13114301,118090.0,118080.0,1.84415052]
[1752888551282,0.13114301,118090.0,118080.0,1.47131994]
[1752888551582,0.13114301,118090.0,118080.0,1.84415052]
[1752888552082,0.16634301,118090.0,118080.0,1.84415052]
[1752888554281,0.22723824,118090.0,118080.0,1.84415052]
[1752888556285,0.26377824,118090.0,118080.0,1.84415052]
[1752888557387,0.26377824,118090.0,118080.0,1.12255052]
[1752888557583,0.26377824,118090.0,118080.0,1.84415052]
[1752888558088,0.26377824,118090.0,118080.0,1.47131994]
[1752888558387,0.26377824,118090.0,118080.0,1.84415052]
[1752888558883,0.24648523,118090.0,118080.0,1.84415052]
[1752888559085,0.17474523,118090.0,118080.0,2.03056581]
[1752888560986,0.11385,118090.0,118080.0,1.84415052]
[1752888562282,0.05508,118090.0,118080.0,2.03056581]
[1752888565492,0.11602923,118090.0,118080.0,2.03056581]
[1752888569793,0.11602923,118090.0,118080.0,1.30896581]
[1752888569996,0.11602923,118090.0,118080.0,2.03056581]
[1752888573999,0.05508,118090.0,118080.0,2.03056581]
[1752888574498,0.07174,118090.0,118080.0,2.03056581]
[1752888574690,0.07174,118090.0,118080.0,1.30896581]
[1752888574892,0.07174,118090.0,118080.0,2.03056581]
[1752888575700,0.11034,118090.0,118080.0,2.03056581]
[1752888577392,0.11034,118090.0,118080.0,1.30896581]
[1752888577692,0.11034,118090.0,118080.0,2.03056581]
[1752888580705,0.12699231,118090.0,118080.0,2.03056581]
[1752888592417,0.12698927,118090.0,118080.0,2.03056581]
[1752888593024,0.18625927,118090.0,118080.0,2.03056581]
[1752888594630,0.2472085,118090.0,118080.0,2.03056581]
[1752888597230,0.18625927,118090.0,118080.0,2.03056581]
[1752888599132,0.16961,118090.0,118080.0,2.03056581]
[1752888599533,0.18625723,118090.0,118080.0,2.03056581]
[1752888599933,0.16961,118090.0,118080.0,2.03056581]
[1752888601131,0.44217367,118090.0,118080.0,1.0188]
[1752888601332,0.62806388,118090.0,118080.0,1.31272]
[1752888601734,0.68901311,118090.0,118080.0,1.01752]
[1752888602534,0.673366,118090.0,118080.0,0.8918574]
[1752888602733,0.673366,118090.0,118080.0,1.37219269]
[1752888602934,0.673366,118090.0,118080.0,1.37119269]
[1752888603136,0.672366,118090.0,118080.0,1.37119269]
[1752888603336,0.674366,118090.0,118080.0,1.37119269]
[1752888603642,0.48795071,118090.0,118080.0,1.1847774]
[1752888603833,0.674366,118090.0,118080.0,1.1847774]
[1752888604637,0.61341677,118090.0,118080.0,1.1847774]
[1752888605537,0.61341677,118090.0,118080.0,1.37119269]
[1752888607137,0.61341677,118090.0,118080.0,1.1847774]
[1752888607337,0.61341677,118090.0,118080.0,1.37119269]
[1752888607637,0.44417367,118090.0,118080.0,1.37119269]
[1752888607937,0.44517367,118090.0,118080.0,1.37119269]
[1752888608635,0.61441667,118090.0,118080.0,1.37119269]
[1752888609739,0.61441667,118090.0,118080.0,1.1847774]
[1752888609939,0.61441667,118090.0,118080.0,1.37119269]
[1752888611941,0.61441667,118090.0,118080.0,1.1847774]
[1752888612140,0.78378468,118090.0,118080.0,0.8908574]
[1752888612441,0.97019997,118090.0,118080.0,1.1846974]
[1752888612741,0.78378468,118090.0,118080.0,1.1846974]
[1752888612941,0.78378468,118090.0,118080.0,0.8908574]
[1752888613138,0.97019997,118090.0,118080.0,0.4630974]
[1752888613441,0.97019997,118090.0,118080.0,0.29384]
[1752888614943,0.1692574,118080.0,118070.0,0.6146906]
[1752888615247,0.71812798,118080.0,118070.0,0.8238601]
[1752888615543,0.9043275,118080.0,118070.0,0.8238601]
[1752888615843,0.9803753,118080.0,118070.0,0.8238601]
[1752888616744,0.9043275,118080.0,118070.0,0.8238601]
[1752888617945,0.9053275,118080.0,118070.0,0.8238601]
[1752888620649,0.7359435,118080.0,118070.0,0.8238601]
[1752888620949,0.79669941,118080.0,118070.0,0.8238601]
[1752888621451,0.7359435,118080.0,118070.0,0.8238601]
[1752888624949,0.79670936,118080.0,118070.0,1.01027539]
[1752888625545,0.79671974,118080.0,118070.0,1.01027539]
[1752888625751,0.79671974,118080.0,118070.0,0.8238601]
[1752888626049,0.79671974,118080.0,118070.0,1.01027539]
[1752888626249,0.36311292,118080.0,118070.0,0.8238601]
[1752888626450,0.7359435,118080.0,118070.0,0.8238601]
[1752888626652,0.7359435,118080.0,118070.0,1.01027539]
[1752888628459,0.7359435,118080.0,118070.0,0.8504901]
[1752888628460,0.8119913,118080.0,118070.0,0.8504901]
[1752888628759,0.8119913,118080.0,118070.0,1.03690539]
[1752888629459,0.43916072,118080.0,118070.0,1.03690539]
[1752888629656,0.8119913,118080.0,118070.0,1.03690539]
[1752888629858,0.43916072,118080.0,118070.0,1.03690539]
[1752888630156,0.8119913,118080.0,118070.0,1.03690539]
[1752888631162,0.8119913,118080.0,118070.0,0.8504901]
[1752888631869,0.43916072,118080.0,118070.0,0.8504901]
[1752888632066,0.8119913,118080.0,118070.0,0.8504901]
[1752888632463,0.43916072,118080.0,118070.0,0.8504901]
[1752888632664,0.8119913,118080.0,118070.0,0.8504901]
[1752888633368,0.8119913,118080.0,118070.0,1.03690539]
[1752888635170,0.43916072,118080.0,118070.0,1.03690539]
[1752888635463,0.8119913,118080.0,118070.0,1.03690539]
[1752888636174,0.8119913,118080.0,118070.0,0.96828036]
[1752888636867,0.26990332,118080.0,118070.0,0.99302036]
[1752888637065,0.19385552,118080.0,118070.0,1.35382036]
[1752888637272,0.26990332,118080.0,118070.0,1.35382036]
[1752888638875,0.19385552,118080.0,118070.0,1.35382036]
[1752888639076,0.16873552,118080.0,118070.0,1.35382036]
[1752888639977,0.22961599,118080.0,118070.0,1.35382036]
[1752888640275,0.44242128,118080.0,118070.0,1.35382036]
[1752888640573,0.25600599,118080.0,118070.0,1.35382036]
[1752888641371,0.19512552,118080.0,118070.0,1.35382036]
[1752888642676,0.12493552,118080.0,118070.0,1.35382036]
[1752888642877,0.16106332,118080.0,118070.0,1.35382036]
[1752888643274,0.16106332,118080.0,118070.0,1.64902036]
[1752888643476,0.12570552,118080.0,118070.0,1.64902036]
[1752888644172,0.12470552,118080.0,118070.0,1.64902036]
[1752888644372,0.12470552,118080.0,118070.0,1.46360507]
[1752888644578,0.18564537,118080.0,118070.0,1.65002036]
[1752888644777,0.18568425,118080.0,118070.0,1.65002036]
[1752888645077,0.2007922,118080.0,118070.0,1.65002036]
[1752888645871,0.2007922,118080.0,118070.0,1.65102036]
[1752888646379,0.1247444,118080.0,118070.0,1.71964699]
[1752888647078,0.18405317,118080.0,118070.0,1.71964699]
[1752888651380,0.18405317,118080.0,118070.0,0.99804699]
[1752888651580,0.18405317,118080.0,118070.0,1.71964699]
[1752888652979,0.10789,118080.0,118070.0,1.71964699]
[1752888654384,0.21435692,118080.0,118070.0,1.71964699]
[1752888654579,0.21435692,118080.0,118070.0,1.42444699]
[1752888655183,0.10789,118080.0,118070.0,1.42444699]
[1752888656380,0.1688089,118080.0,118070.0,1.42444699]
[1752888657280,0.10789,118080.0,118070.0,1.42444699]
[1752888657482,0.18403971,118080.0,118070.0,1.42444699]
[1752888659384,0.10789,118080.0,118070.0,1.42444699]
[1752888661083,0.16881307,118080.0,118070.0,1.42444699]
[1752888661380,0.10789,118080.0,118070.0,1.42444699]
[1752888661580,0.0672,118080.0,118070.0,1.61086228]
[1752888661780,0.48737772,118090.0,118080.0,0.2200574]
[1752888661983,0.48737772,118090.0,118080.0,0.91225947]
[1752888662384,0.41122801,118090.0,118080.0,0.91225947]
[1752888663493,0.41222801,118090.0,118080.0,0.91225947]
[1752888663691,0.41222801,118090.0,118080.0,0.53942889]
[1752888663892,0.41222801,118090.0,118080.0,1.20745947]
[1752888664689,0.41122801,118090.0,118080.0,1.20845947]
[1752888664889,0.41122801,118090.0,118080.0,1.20945947]
[1752888665089,0.41122801,118090.0,118080.0,1.50301947]
[1752888667089,0.47215234,118090.0,118080.0,1.50301947]
[1752888667489,0.43146234,118090.0,118080.0,1.50301947]
[1752888667689,0.41537234,118090.0,118080.0,1.50301947]
[1752888668491,0.36083234,118090.0,118080.0,1.50301947]
[1752888668687,0.13743271,118090.0,118080.0,1.5217986]
[1752888668892,0.13743271,118090.0,118080.0,1.2265986]
[1752888669593,0.07650838,118090.0,118080.0,1.2265986]
[1752888670194,0.14766416,118090.0,118080.0,1.2265986]
[1752888670593,0.2085762,118090.0,118080.0,1.2265986]
[1752888671896,0.2085762,118090.0,118080.0,0.85376802]
[1752888672097,0.2246662,118090.0,118080.0,1.2265986]
[1752888672287,0.2653562,118090.0,118080.0,1.2265986]
[1752888672692,0.2653562,118090.0,118080.0,1.5217986]
[1752888674394,0.20444318,118090.0,118080.0,1.5217986]
[1752888674893,0.2653562,118090.0,118080.0,1.5217986]
[1752888677203,0.20444318,118090.0,118080.0,1.5217986]
[1752888677599,0.2653562,118090.0,118080.0,1.5217986]
[1752888677999,0.20444318,118090.0,118080.0,1.5217986]
[1752888678704,0.20444318,118090.0,118080.0,1.2265986]
[1752888679300,0.27032318,118090.0,118080.0,0.9330386]
[1752888679606,0.45673847,118090.0,118080.0,1.04006331]
[1752888679906,0.62598157,118090.0,118080.0,1.01495331]
[1752888680496,0.45673847,118090.0,118080.0,1.01495331]
[1752888680696,0.62598157,118090.0,118080.0,1.01495331]
[1752888680901,0.68689459,118090.0,118080.0,1.01495331]
[1752888681101,0.68789459,118090.0,118080.0,1.01395331]
[1752888681601,0.51865149,118090.0,118080.0,1.01395331]
[1752888681904,0.45937149,118090.0,118080.0,1.01395331]
[1752888682305,0.2729562,118090.0,118080.0,1.01395331]
[1752888682509,0.45937149,118090.0,118080.0,1.01395331]
[1752888682805,0.45937149,118090.0,118080.0,0.82753802]
[1752888683007,0.45937149,118090.0,118080.0,1.01295331]
[1752888683207,0.2729562,118090.0,118080.0,1.01295331]
[1752888683404,0.45937149,118090.0,118080.0,1.01295331]
[1752888684407,0.51864149,118090.0,118080.0,1.01295331]
[1752888684611,0.51864149,118090.0,118080.0,1.4945686]
[1752888684909,0.45772847,118090.0,118080.0,1.4945686]
[1752888685109,0.53387818,118090.0,118080.0,1.5187986]
[1752888686306,0.53387818,118090.0,118080.0,1.33238331]
[1752888687109,0.53387818,118090.0,118080.0,1.5187986]
[1752888694312,0.34746289,118090.0,118080.0,1.5187986]
[1752888694615,0.27131318,118090.0,118080.0,1.5187986]
[1752888694913,0.51865753,118090.0,118080.0,1.5187986]
[1752888695112,0.51865753,118090.0,118080.0,1.8795986]
[1752888695305,0.45772847,118090.0,118080.0,1.8795986]
[1752888699920,0.45772847,118090.0,118080.0,1.1579986]
[1752888700219,0.45772847,118090.0,118080.0,1.8795986]
[1752888700818,0.27131318,118090.0,118080.0,1.8795986]
[1752888702719,0.27131318,118090.0,118080.0,1.50676802]
[1752888703018,0.27131318,118090.0,118080.0,1.8795986]
[1752888703219,0.33224224,118090.0,118080.0,1.8795986]
[1752888704319,0.51865753,118090.0,118080.0,1.8795986]
[1752888705820,0.51865753,118090.0,118080.0,1.86081947]
[1752888706020,0.51865753,118090.0,118080.0,1.65017418]
[1752888706222,0.68790063,118090.0,118080.0,1.69160269]
[1752888706422,0.62697157,118090.0,118080.0,1.69160269]
[1752888706623,0.44055628,118090.0,118080.0,1.69160269]
[1752888706818,0.62697157,118090.0,118080.0,1.69160269]
[1752888708222,0.62697157,118090.0,118080.0,1.39640269]
[1752888708624,0.62697157,118090.0,118080.0,1.2099874]
[1752888708822,0.62697157,118090.0,118080.0,1.39640269]
[1752888710021,0.70312128,118090.0,118080.0,1.39640269]
[1752888710217,0.62697157,118090.0,118080.0,1.39640269]
[1752888710421,0.70312128,118090.0,118080.0,1.39640269]
[1752888710725,0.70312128,118090.0,118080.0,1.2099874]
[1752888710925,0.70312128,118090.0,118080.0,1.39640269]
[1752888711126,0.62697157,118090.0,118080.0,1.39640269]
[1752888711926,0.62697157,118090.0,118080.0,1.2099874]
[1752888712126,0.62697157,118090.0,118080.0,1.39640269]
[1752888713127,0.62697157,118090.0,118080.0,1.2099874]
[1752888713325,0.62697157,118090.0,118080.0,1.39640269]
[1752888713722,0.62697157,118090.0,118080.0,0.67480269]
[1752888713928,0.62697157,118090.0,118080.0,1.03560269]
[1752888715328,0.68793678,118090.0,118080.0,1.03560269]
[1752888717130,0.68793678,118090.0,118080.0,0.8491874]
[1752888717331,0.68793678,118090.0,118080.0,1.03560269]
[1752888717625,0.68793678,118090.0,118080.0,0.5557474]
[1752888717831,0.88953657,118090.0,118080.0,0.4624974]
[1752888718129,0.3374273,118080.0,118070.0,0.2539004]
[1752888718325,0.80302239,118080.0,118070.0,0.5471404]
[1752888718529,0.72687268,118080.0,118070.0,0.5471404]
[1752888719430,0.80302239,118080.0,118070.0,0.5481404]
[1752888719932,0.80302239,118080.0,118070.0,0.5491404]
[1752888720333,0.43019181,118080.0,118070.0,0.5491404]
[1752888720633,0.80302239,118080.0,118070.0,0.5491404]
[1752888721433,0.80302239,118080.0,118070.0,0.5068225]
[1752888721928,1.76369213,118080.0,118070.0,0.002]
[1752888722137,1.79599197,118080.0,118070.0,0.00016579]
[1752888722433,1.90245889,118080.0,118070.0,0.00016579]
[1752888722629,1.90241889,118080.0,118070.0,0.00016579]
[1752888722834,1.7160036,118080.0,118070.0,0.00016579]
[1752888723526,1.73284185,118080.0,118070.0,0.00016579]
[1752888723730,1.73284185,118080.0,118070.0,0.1692717]
[1752888723931,0.2356917,118070.0,118060.0,0.9079171]
[1752888724133,0.61657615,118070.0,118060.0,0.9079171]
[1752888724326,0.61657615,118070.0,118060.0,0.5471171]
[1752888725030,0.61657615,118070.0,118060.0,0.6147171]
[1752888726836,0.61757615,118070.0,118060.0,0.6147171]
[1752888727335,0.61857615,118070.0,118060.0,0.6147171]
[1752888727938,0.61857615,118070.0,118060.0,0.6410071]
[1752888729738,0.54247179,118070.0,118060.0,0.6410071]
[1752888730933,0.58665655,118070.0,118060.0,0.6410071]
[1752888731139,0.60337676,118070.0,118060.0,0.6410071]
[1752888733038,0.67064361,118070.0,118060.0,0.6410071]
[1752888734939,0.60984405,118070.0,118060.0,0.6410071]
[1752888735138,0.68594841,118070.0,118060.0,0.6410071]